Cogmind - Beta 13 @@@ ROGUE MODE // 2024.04.01 @ 20:30:52 Player: Apotheosis Result: Destroyed by D-53 Grenadier with Mini Grenade Launcher Performance ------------- Evolutions (1) 500 Regions Visited (4) 800 Robots Destroyed (23) 115 Value Destroyed (600) 600 Prototype IDs (0) 0 Alien Tech Used (0) 0 Bonus (0) 0 TOTAL SCORE: 2015 Bonus ------- None Cogmind --------- Core Integrity 0/400 Matter 127/300 Energy 100/100 System Corruption 3% Temperature Cool (1) Movement Flying (40) Location -9/Mines Parts ------- > --- POWER (2) -------- (None) > --- PROPULSION (2) --- Flight Unit > --- UTILITY (3) ------ Targeting Computer > --- WEAPON (2) ------- (None) > --- INVENTORY (5) ---- (None) Peak State ------------ > --- POWER ------------ Ion Engine > --- PROPULSION ------- Aluminum Leg Aluminum Leg > --- UTILITY ---------- Targeting Computer Targeting Computer Hacking Suite > --- WEAPON ----------- Assault Rifle Datajack > --- INVENTORY -------- Grenade Launcher Grenade Launcher Grenade Launcher Mining Laser [Rating: 10] Favorites ----------- Power Light Ion Engine Engine Light Ion Engine Propulsion Aluminum Leg Leg Aluminum Leg Hover Unit Hover Unit Flight Unit Flight Unit Utility Targeting Computer Device Terrain Scanner Processor Targeting Computer Hackware Hacking Suite Weapon Assault Rifle Ballistic Gun Assault Rifle Launcher Grenade Launcher Special Weapon Mining Laser Special Melee Weapon Datajack Build | -11 -10 -10 -9 -9 ------- Run | Yrd Mat Min Mat Min Slots Evolved 2 | . . . 2 . Power 1 | . . . 1 . Propulsion . | . . . . . Utility 1 | . . . 1 . Weapon . | . . . . . Parts Attached 26 | 4 8 . 11 3 Power 3 | 1 2 . . . Engine 3 | 1 2 . . . Core . | . . . . . Reactor . | . . . . . Propulsion 7 | 2 1 . 3 1 Treads . | . . . . . Leg 4 | 2 1 . 1 . Wheel . | . . . . . Hover 2 | . . . 2 . Flight 1 | . . . . 1 Utility 5 | . 2 . 3 . Device 1 | . 1 . . . Storage . | . . . . . Processor 3 | . 1 . 2 . Hackware 1 | . . . 1 . Protection . | . . . . . Artifact . | . . . . . Weapon 11 | 1 3 . 5 2 Energy Gun . | . . . . . Energy Cannon . | . . . . . Ballistic Gun 3 | 1 . . 1 1 Ballistic Cannon . | . . . . . Launcher 6 | . 3 . 3 . Special Weapon 1 | . . . . 1 Impact Weapon . | . . . . . Slashing Weapon . | . . . . . Piercing Weapon . | . . . . . Special Melee Weapon 1 | . . . 1 . Unidentified Prototypes . | . . . . . Parts Lost 15 | . 3 . 8 4 Power 1 | . . . 1 . Propulsion 3 | . . . 2 1 Utility 4 | . 2 . 1 1 Weapon 7 | . 1 . 4 2 Highest Loss Streak 5 | . 3 . 4 5 To Critical Strikes . | . . . . . Average Slot Usage (%) 73 | . 86 71 71 27 Engine 10 | . 14 14 9 . Leg 18 | . 28 28 12 3 Hover 3 | . . . 7 . Device 4 | . 11 . . . Processor 11 | . 5 . 15 11 Hackware 4 | . . . 7 5 Ballistic Gun 4 | . 1 . 5 3 Launcher 16 | . 24 28 12 . Naked Turns . | . . . . . Heaviest Build 12 | 5 12 11 11 3 Greatest Support 20 | 20 20 20 20 10 Greatest Overweight (x) 1 | . . . 1 . Average Overweight (x) . | . . . . . Largest Inventory Capacity 5 | 5 5 5 5 5 Average Capacity 5 | 5 5 5 5 5 Most Carried 5 | 4 5 3 5 1 Average Carried . | . 3 3 3 . Final Capacity 5 | 5 5 5 5 5 Final Carried 3 | . 3 3 2 . Class Distribution -------------------- 98% | Mutant Dominant Class ---------------- Mutant | -10/Materials Mutant | -10/Mines Mutant | -9/Materials Mutant | -9/Mines Resources | -11 -10 -10 -9 -9 ----------- Run | Yrd Mat Min Mat Min Matter Collected 535 | 240 100 . 179 16 Remotely . | . . . . . Salvage Created 613 | . 146 . 451 16 Parts 46 | . 13 . 31 2 Haulers Intercepted . | . . . . . Recyclers Shooed 1 | . . . 1 . Parts Field Recycled . | . . . . . Retrieved Matter . | . . . . . Parts Self-Destructed . | . . . . . Prevented . | . . . . . Kills | -11 -10 -10 -9 -9 ------- Run | Yrd Mat Min Mat Min Combat Hostiles Destroyed 15 | . 7 . 7 1 Melee 1 | . . . . 1 Guns 2 | . . . 2 . AOE 12 | . 7 . 5 . Classes Destroyed 7 | . 3 . 4 . Builder 2 | . . . 2 . Recycler 3 | . . . 3 . Operator 1 | . . . 1 . Watcher 2 | . 1 . 1 . Swarmer 4 | . 3 . . 1 Grunt 10 | . 4 . 6 . Sentry 1 | . . . 1 . Best Kill Streak 7 | . 7 . 5 1 Combat Bots Only 6 | . 6 . 4 1 Max Kills in Single Turn 3 | . 3 . 2 1 Gunslinging . | . . . . . Exploded 2 | . 2 . 1 . Melee 1 | . . . . 1 Uniques/NPCs Destroyed . | . . . . . Combat | -11 -10 -10 -9 -9 -------- Run | Yrd Mat Min Mat Min Hostile Shots Fired 95 | . 11 . 47 37 Missed 28 | . 2 . 13 13 Damage Taken 1320 | . 373 . 618 329 Core 451 | . 16 . 237 198 Absorbed by Shields . | . . . . . Core Remaining (%) 96 | 100 . 93 . . Volleys Fired 38 | . 6 . 24 8 Largest 2 | . 2 . 2 1 Hottest 60 | . 60 . 60 20 Shots Fired 52 | . 12 . 32 8 Gun 27 | . . . 19 8 Cannon . | . . . . . Launcher 25 | . 12 . 13 . Special . | . . . . . Kinetic 27 | . . . 19 8 Thermal . | . . . . . Explosive 25 | . 12 . 13 . Electromagnetic . | . . . . . Robot Hit Streak 7 | . 1 . 7 4 Robot Miss Streak 2 | . 2 . 2 1 Penetration Max . | . . . . . Secondary Targets . | . . . . . Shots Hit Robots 34 | . 3 . 26 5 Core Hits 49 | . 16 . 29 4 Critical Kills . | . . . . . Critical Parts Destroyed . | . . . . . Critical Strikes . | . . . . . Melee Attacks 4 | . . . 4 . Impact . | . . . . . Slashing . | . . . . . Piercing . | . . . . . Sneak Attacks 4 | . . . 4 . Combat Hostiles . | . . . . . Follow-up Attacks . | . . . . . Damage Inflicted 1320 | . 518 . 712 90 Guns 239 | . . . 165 74 Cannons . | . . . . . Explosions 1063 | . 518 . 545 . Melee . | . . . . . Ramming 18 | . . . 2 16 Kinetic 239 | . . . 165 74 Thermal . | . . . . . Explosive 1063 | . 518 . 545 . Electromagnetic . | . . . . . Impact . | . . . . . Slashing . | . . . . . Piercing . | . . . . . Highest Corruption 3 | . 2 2 . 3 Average Corruption 2 | . 2 2 . 2 Corruption Purged . | . . . . . Corruption Blocked . | . . . . . Effects 2 | . 1 1 . . Matter Fused 1 | . . 1 . . Parts Rejected 1 | . 1 . . . Overload Shots . | . . . . . Overflow Damage 67 | . 33 . 34 . Projectiles . | . . . . . Explosions 67 | . 33 . 34 . Melee . | . . . . . Knockbacks . | . . . . . Impact . | . . . . . Kinetic . | . . . . . Secondary . | . . . . . Self-Inflicted Damage 336 | . 85 . 243 8 Shots 10 | . 3 . 7 . Rammed 3 | . . . . 3 Targets Rammed 5 | . . . 2 3 Kicked 2 | . . . 2 . Crushed . | . . . . . Highest Temperature 21 | . 21 . 13 3 Average Temperature 10 | . 12 . 7 3 Received Heat Transfer 315 | . 48 . 162 105 Siege Activations . | . . . . . Robots Corrupted . | . . . . . Combat Hostiles . | . . . . . Parts Fried . | . . . . . Impact Corruptions . | . . . . . Robots Melted . | . . . . . Combat Hostiles . | . . . . . Parts Melted . | . . . . . Heat Transferred . | . . . . . Parts Sabotaged . | . . . . . Parts Stolen . | . . . . . Parts Stripped . | . . . . . Power Chain Reactions . | . . . . . Alert | -11 -10 -10 -9 -9 ------- Run | Yrd Mat Min Mat Min Peak Influence 411 | . 322 119 411 156 Initial 156 | . . 119 46 156 Average 21 | . 93 119 174 144 Maximum Alert Level 2 | . 1 . 2 . Low Security (%) 95 | 100 90 100 51 100 Level 1 4 | . 9 . 46 . Level 2 . | . . . 1 . Level 3 . | . . . . . Level 4 . | . . . . . Level 5 . | . . . . . High Security . | . . . . . Max Security . | . . . . . Squads Dispatched 4 | . 1 . 3 . Investigation . | . . . . . Extermination . | . . . . . Reinforcement 4 | . 1 . 3 . Assault . | . . . . . Garrison . | . . . . . Intercept . | . . . . . Searches Triggered . | . . . . . Construction Impeded 1 | . . . 1 . Haulers Reinforced . | . . . . . Active Scanning Responses . | . . . . . Cargo Convoy Interrupts . | . . . . . Stealth | -11 -10 -10 -9 -9 --------- Run | Yrd Mat Min Mat Min Distress Signals 3 | . 1 . 2 . Communications Jammed . | . . . . . Distress Signals . | . . . . . Times Spotted 44 | . 11 . 20 13 Peak Tracking Total 11 | . 7 . 7 11 Tactical Retreats 3 | . . . 2 1 Traps | -11 -10 -10 -9 -9 ------- Run | Yrd Mat Min Mat Min Traps Triggered . | . . . . . Indirectly . | . . . . . Trap Hack Attempts . | . . . . . Triggered . | . . . . . Disarmed . | . . . . . Reprogrammed . | . . . . . Reused . | . . . . . Traps Extracted . | . . . . . Installed . | . . . . . Triggered . | . . . . . Machines | -11 -10 -10 -9 -9 ---------- Run | Yrd Mat Min Mat Min Machines Disabled 6 | . 1 . 5 . Max in Single Turn 2 | . 1 . 2 . Machines Repaired . | . . . . . Machines Dismantled . | . . . . . Machines Sabotaged . | . . . . . Overloaded Fab Kills . | . . . . . Hacking | -11 -10 -10 -9 -9 --------- Run | Yrd Mat Min Mat Min Machines Accessed 2 | . 1 . 1 . Terminals 2 | . 1 . 1 . Fabricators . | . . . . . Repair Stations . | . . . . . Recycling Units . | . . . . . Scanalyzers . | . . . . . Garrison Access . | . . . . . Total Hacks 4 | . 2 . 2 . Successful 3 | . 1 . 2 . Failed 1 | . 1 . . . Catastrophic . | . . . . . Database Lockouts . | . . . . . Manual . | . . . . . Terminals 4 | . 2 . 2 . Fabricators . | . . . . . Repair Stations . | . . . . . Recycling Units . | . . . . . Scanalyzers . | . . . . . Garrison Access . | . . . . . Terminal Hacks 3 | . 1 . 2 . Investigation Status 1 | . . . 1 . Hauler Manifests 1 | . 1 . . . Zone Layout 1 | . . . 1 . Fabricator Hacks . | . . . . . Repair Station Hacks . | . . . . . Recycling Unit Hacks . | . . . . . Scanalyzer . | . . . . . Garrison Access Hacks . | . . . . . Unauthorized Hacks . | . . . . . Terminals . | . . . . . Fabricators . | . . . . . Repair Stations . | . . . . . Recycling Units . | . . . . . Scanalyzers . | . . . . . Garrison Access . | . . . . . Data Cores Recovered . | . . . . . Used . | . . . . . Hacking Detections 1 | . 1 . . . Full Trace Events . | . . . . . Feedback Events . | . . . . . Feedback Blocked . | . . . . . Robot Schematics Acquired . | . . . . . Robots Built . | . . . . . Authchips . | . . . . . Time . | . . . . . Total Robot Build Rating . | . . . . . Part Schematics Acquired . | . . . . . Parts Built . | . . . . . Authchips . | . . . . . Time . | . . . . . Total Part Build Rating . | . . . . . Parts Repaired . | . . . . . Time . | . . . . . Parts Recycled . | . . . . . Recycled Matter . | . . . . . Retrieved Matter . | . . . . . Retrieved Components . | . . . . . Parts Scanalyzed . | . . . . . Part Schematics Acquired . | . . . . . Parts Damaged . | . . . . . Bothacking | -11 -10 -10 -9 -9 ------------ Run | Yrd Mat Min Mat Min Used RIF Installer . | . . . . . Robots Hacked 1 | . . . 1 . Non-combat 1 | . . . 1 . Combat . | . . . . . Robot Hacks Applied 2 | . . . 2 . parse_system 1 | . . . 1 . no_distress 1 | . . . 1 . Relay Couplers Released . | . . . . . Fabnet Peak Effective % . | . . . . . Robots Rewired . | . . . . . Allies Hacked . | . . . . . Hacks Repelled . | . . . . . Allies | -11 -10 -10 -9 -9 -------- Run | Yrd Mat Min Mat Min Total Allies . | . . . . . Largest Group . | . . . . . Highest-Rated Group . | . . . . . Highest-Rated Ally . | . . . . . Total Orders . | . . . . . Ally Attacks . | . . . . . Total Damage . | . . . . . Kills . | . . . . . Allies Corrupted . | . . . . . Allies Melted . | . . . . . Intel | -11 -10 -10 -9 -9 ------- Run | Yrd Mat Min Mat Min Robot Analysis Total . | . . . . . Derelict Logs Recovered 1 | . . . . 1 Drone Launches . | . . . . . Drone Recoveries . | . . . . . Exploration | -11 -10 -10 -9 -9 ------------- Run | Yrd Mat Min Mat Min Turns Passed 4650 | 3917 283 28 370 52 Spaces Moved 851 | 336 195 24 241 55 Core 46 | 9 . . . 37 Treads . | . . . . . Legs 690 | 327 195 24 143 1 Wheels . | . . . . . Hover 98 | . . . 98 . Flight 17 | . . . . 17 Fastest Speed 40 | 50 120 120 56 40 Average Speed 108 | 118 120 120 97 48 Slowest Speed 130 | 120 120 120 130 120 Overloaded Moves . | . . . . . Propulsion Burnouts . | . . . . . Robots Hopped . | . . . . . Cave-ins Triggered 1 | . 1 . . . Exploration Rate (%) 33 | 64 43 11 25 22 Regions Visited 4 Branch Regions 2 Pre-discovered Areas 1 | . . 1 . . Known Exits Taken . | . . . . . Unknown Exits Taken 4 | 1 1 1 1 . Scrap Searched . | . . . . . Spaces Dug 6 | . . . 6 . Terrain Destroyed 151 | . 80 . 71 . Melee . | . . . . . Projectile . | . . . . . AOE 151 | . 80 . 71 . Terrain Rammed . | . . . . . Walls Destroyed . | . . . . . Machines Disabled . | . . . . . Actions | -11 -10 -10 -9 -9 --------- Run | Yrd Mat Min Mat Min Total 4523 | 3856 231 23 341 72 Wait 3575 | 3513 11 . 49 2 Move 847 | 335 194 23 240 55 Hop . | . . . . . Pick Up 23 | 4 10 . 8 1 Fast Attach . | . . . . . Attach 19 | 4 5 . 7 3 Detach . | . . . . . Swap 7 | . 3 . 4 . Drop 5 | . 2 . 3 . Fire 38 | . 6 . 24 8 Melee 4 | . . . 4 . Ram 3 | . . . . 3 Kick 2 | . . . 2 . Crush . | . . . . . Escape Stasis . | . . . . . Rewire . | . . . . . Trap . | . . . . . Miscellaneous . | . . . . . Route ------- -11/Scrapyard -10/Materials -10/Mines -9/Materials -9/Mines (discovered 1 exit: Mat) History --------- Turn | Location | Event 8 | -11/Scrapyard | Discovered new exit (range 16) 3918 | -11/Scrapyard | Entered Materials 3919 | -10/Materials | Build established: Mutant 4171 | -10/Materials | Discovered new exit (range 15) 4180 | -10/Materials | Crushed by falling debris 4201 | -10/Materials | Entered Mines 4211 | -10/Mines | Lost 3 parts (2u1w) 4216 | -10/Mines | Learned location of Storage (-9) 4216 | -10/Mines | Discovered new exit (range 11) 4229 | -10/Mines | Entered Materials 4229 | -9/Materials | Evolved 2 slots: Power x1, Utility x1 4541 | -9/Materials | Core integrity fell below 50% 4581 | -9/Materials | Discovered new exit (range 10) 4584 | -9/Materials | Lost 4 parts (1p1n2w) 4599 | -9/Materials | Entered Mines 4623 | -9/Mines | Identified exit to Materials 4626 | -9/Mines | Assembled infested the area 4627 | -9/Mines | Core integrity fell below 20% 4651 | -9/Mines | Destroyed by D-53 Grenadier with Mini Grenade Launcher Last Messages --------------- Mining Laser destroyed. Assault Rifle destroyed. Acquired derelict log, extracted data. Slammed into S-10 Pest. Hacking Suite destroyed. System corrupted by crushing effect (+1). S-10 Pest destroyed. Slammed into S-10 Pest. ALERT: Infestation in the mines, dispatching Demolisher response squad. Slammed into S-10 Pest. S-10 Pest destroyed. [Achievement: Fist Fight] Destabilizing: System corrupted (+2). Acquired 16 matter. S-10 Pest destroyed. Acquired Flight Unit. as-93097 destroyed. R-06 Scavenger collects Wheel. The unstable cave ceiling collapses. Map ----- +----------------------------------------------------+ | ?# ##????????????????????????? | | ## ##???????????????????????? | | # ##??????????????????????? | | ##?????????????????????? | | #?????????????????????? | | #?????????????????????? | | #?????????????????????? | | #?????????????????????? | | ## #????????????????????? | | ??#### # ##????????????????????? | | ?????# ##########?????????????????????? | | ?????# #####??????????????????????????? | | ?????# #???????????